bitfinex/quotes_BTCUSD_20240823
["timestamp","ask_amount","ask_price","bid_price","bid_amount"]
[1724419237060,0.02564941,61148.0,61147.0,0.17828924]
[1724419239995,0.02564941,61148.0,61147.0,0.01474924]
[1724419240227,0.02564941,61148.0,61147.0,0.17828924]
[1724419241820,0.02564941,61148.0,61147.0,0.50536924]
[1724419242003,0.02564941,61148.0,61147.0,0.65296924]
[1724419242832,0.02564941,61148.0,61147.0,1.30712924]
[1724419243647,0.02564941,61148.0,61147.0,1.91304909]
[1724419243849,0.02564941,61148.0,61147.0,1.93604909]
[1724419244796,0.02564941,61148.0,61147.0,1.49213222]
[1724419245005,0.02564941,61148.0,61147.0,1.46913222]
[1724419245208,0.02564941,61148.0,61147.0,1.47113222]
[1724419245781,0.02564941,61148.0,61147.0,1.46913222]
[1724419245954,0.02664941,61148.0,61147.0,1.47113222]
[1724419247149,0.02564941,61148.0,61147.0,1.46913222]
[1724419247652,0.02664941,61148.0,61147.0,1.47513222]
[1724419248080,0.02564941,61148.0,61147.0,1.46913222]
[1724419248644,0.02664941,61148.0,61147.0,1.47513222]
[1724419248877,0.02564941,61148.0,61147.0,1.46913222]
[1724419249318,0.02664941,61148.0,61147.0,1.47513222]
[1724419249734,0.02664941,61148.0,61147.0,1.48259077]
[1724419250572,0.02664941,61148.0,61147.0,1.47659077]
[1724419250573,0.02564941,61148.0,61147.0,1.47659077]
[1724419250909,0.02664941,61148.0,61147.0,1.48059077]
[1724419251493,0.02564941,61148.0,61147.0,1.47659077]
[1724419251910,0.02664941,61148.0,61147.0,1.48059077]
[1724419252317,0.02564941,61148.0,61147.0,1.47659077]
[1724419252521,0.02564941,61148.0,61147.0,1.48059077]
[1724419254447,0.02564941,61148.0,61147.0,1.47659077]
[1724419254804,0.02564941,61148.0,61147.0,1.47959077]
[1724419255395,0.02564941,61148.0,61147.0,1.47659077]
[1724419255787,0.02564941,61148.0,61147.0,1.47859077]
[1724419256289,0.02564941,61148.0,61147.0,0.02220779]
[1724419256489,0.44792328,61148.0,61147.0,0.01474924]
[1724419256692,0.77499828,61148.0,61147.0,0.01474924]
[1724419256831,0.77499828,61148.0,61147.0,0.002]
[1724419257049,0.38209938,61148.0,61147.0,0.002]
[1724419257266,0.33308641,61148.0,61147.0,0.002]
[1724419257438,0.163542,61147.0,61142.0,0.163552]
[1724419257847,0.163542,61147.0,61143.0,0.01018415]
[1724419258057,0.163546,61145.0,61143.0,0.01018415]
[1724419258256,0.327082,61147.0,61143.0,0.01018415]
[1724419258477,0.0824,61146.0,61142.0,0.163552]
[1724419258904,0.0824,61146.0,61121.0,0.09949974]
[1724419258905,0.0615,61141.0,61134.0,0.163574]
[1724419259364,0.32712,61140.0,61134.0,0.163574]
[1724419259631,0.163565,61138.0,61133.0,0.163575]
[1724419259889,0.18921319,61140.0,61134.0,0.163574]
[1724419260147,0.02565219,61140.0,61134.0,0.163574]
[1724419260473,0.163561,61139.0,61134.0,0.163572]
[1724419260632,0.163564,61138.0,61135.0,0.01020388]
[1724419261104,0.490694,61138.0,61135.0,0.01020388]
[1724419261340,0.163565,61138.0,61135.0,0.01020388]
[1724419261578,0.163567,61137.0,61133.0,0.163576]
[1724419261804,0.163567,61137.0,61136.0,0.01020142]
[1724419262038,0.163563,61139.0,61134.0,0.163574]
[1724419262289,0.163564,61138.0,61136.0,0.01020142]
[1724419262532,0.163564,61138.0,61135.0,0.01020388]
[1724419262768,0.163564,61138.0,61132.0,0.32716]
[1724419262769,0.163564,61138.0,61137.0,0.01019895]
[1724419263015,0.163564,61138.0,61136.0,0.01020142]
[1724419263249,0.163564,61138.0,61137.0,0.01019895]
[1724419263726,0.163564,61138.0,61134.0,0.163573]
[1724419263961,0.163564,61138.0,61137.0,0.01019895]
[1724419264195,0.163564,61138.0,61134.0,0.163573]
[1724419264430,0.163564,61138.0,61137.0,0.01019895]
[1724419264684,0.163564,61138.0,61134.0,0.163573]
[1724419264685,0.163564,61138.0,61135.0,0.01020388]
[1724419264915,0.163564,61138.0,61137.0,0.01019895]
[1724419265154,0.004,61138.0,61136.0,0.01020142]
[1724419265384,0.167566,61138.0,61137.0,0.01019895]
[1724419265670,0.163566,61138.0,61137.0,0.01019895]
[1724419265911,0.163566,61138.0,61134.0,0.163574]
[1724419266142,0.167566,61138.0,61137.0,0.01019895]
[1724419266375,0.167566,61138.0,61134.0,0.163574]
[1724419266619,0.163566,61138.0,61137.0,0.01019895]
[1724419266850,0.167566,61138.0,61134.0,0.163574]
[1724419267082,0.167566,61138.0,61137.0,0.01019895]
[1724419267342,0.167566,61138.0,61134.0,0.163574]
[1724419267819,0.167566,61138.0,61135.0,0.01020388]
[1724419268984,0.163566,61138.0,61135.0,0.01020388]
[1724419269184,0.163567,61137.0,61135.0,0.01020388]
[1724419270716,0.167564,61138.0,61135.0,0.01020388]
[1724419271124,0.163564,61138.0,61135.0,0.01020388]
[1724419271545,0.003,61137.0,61135.0,0.01020388]
[1724419271938,0.163564,61138.0,61135.0,0.17377588]
[1724419272363,0.167564,61138.0,61135.0,0.17377588]
[1724419273298,0.004,61138.0,61135.0,0.17377588]
[1724419274254,0.004,61138.0,61136.0,0.163569]
[1724419274789,0.004,61138.0,61137.0,0.01019895]
[1724419274991,0.163562,61139.0,61134.0,0.327146]
[1724419275191,0.163562,61139.0,61135.0,0.01020388]
[1724419275539,0.004,61138.0,61135.0,0.01020388]
[1724419275801,0.004,61138.0,61136.0,0.163568]
[1724419275999,0.30404806,61140.0,61136.0,0.163568]
[1724419276214,0.005,61139.0,61137.0,0.01019895]
[1724419276616,0.005,61139.0,61136.0,0.163568]
[1724419276821,0.005,61139.0,61138.0,0.01019648]
[1724419277231,0.168561,61139.0,61136.0,0.163568]
[1724419277439,0.163561,61139.0,61136.0,0.163568]
[1724419277641,0.163561,61139.0,61137.0,0.01019895]
[1724419277846,0.004,61138.0,61137.0,0.01019895]
[1724419278049,0.004,61138.0,61136.0,0.163568]
[1724419278252,0.30404806,61140.0,61137.0,0.01019895]
[1724419278486,0.30404806,61140.0,61137.0,0.17376495]
[1724419278610,0.005,61139.0,61137.0,0.163566]
[1724419278824,0.005,61139.0,61138.0,0.01019648]
[1724419279228,0.30404806,61140.0,61138.0,0.01019648]
[1724419279435,0.31004806,61140.0,61138.0,0.01019648]
[1724419280725,0.30404806,61140.0,61138.0,0.01019648]
[1724419280981,0.005,61139.0,61138.0,0.01019648]
[1724419281598,0.14048906,61140.0,61138.0,0.01019648]
[1724419282137,0.14211009,61140.0,61138.0,0.01019648]
[1724419282472,0.14811009,61140.0,61138.0,0.01019648]
[1724419283476,0.03327322,61140.0,61138.0,0.17376048]
[1724419284668,0.03327322,61140.0,61138.0,0.01019648]
[1724419285893,0.19683222,61140.0,61138.0,0.01019648]
[1724419286115,0.03327322,61140.0,61138.0,0.01019648]
[1724419289500,0.19683222,61140.0,61138.0,0.01019648]
[1724419290541,0.03165219,61140.0,61138.0,0.01019648]
[1724419290903,0.03165219,61140.0,61138.0,0.17375948]
[1724419291784,0.03165219,61140.0,61138.0,0.01019648]
[1724419293302,0.19521119,61140.0,61138.0,0.01019648]
[1724419293516,0.03165219,61140.0,61138.0,0.01019648]
[1724419295570,0.19521119,61140.0,61138.0,0.01019648]
[1724419295724,0.00162103,61139.0,61138.0,0.01019648]
[1724419297753,0.02565219,61140.0,61138.0,0.17375948]
[1724419297956,0.005,61139.0,61138.0,0.01019648]
[1724419298365,0.572384,61139.0,61138.0,0.01019648]
[1724419298835,0.163565,61138.0,61134.0,0.163573]
[1724419299065,0.16518903,61137.0,61132.0,0.387257]
[1724419299283,0.00162103,61137.0,61135.0,0.17336338]
[1724419299494,0.16518803,61137.0,61134.0,0.163574]
[1724419299698,0.163567,61137.0,61136.0,0.00978892]
[1724419299902,0.163567,61137.0,61135.0,0.00979138]
[1724419300140,0.00162103,61138.0,61136.0,0.00978719]
[1724419300574,0.16518503,61138.0,61136.0,0.00978719]
[1724419300784,0.163564,61138.0,61136.0,0.00978719]
[1724419300965,0.003,61137.0,61136.0,0.00978719]
[1724419301264,0.003,61137.0,61135.0,0.163571]
[1724419301497,0.003,61137.0,61132.0,0.387257]
[1724419301498,0.163564,61138.0,61134.0,0.163574]
[1724419301925,0.163564,61138.0,61135.0,0.163572]
[1724419302097,0.0767,61139.0,61135.0,0.163571]
[1724419302358,0.05291259,61138.0,61136.0,0.00978719]
[1724419302589,1.20004323,61137.0,61136.0,0.00978719]
[1724419302822,1.24129588,61137.0,61136.0,0.00978719]
[1724419303024,1.24129588,61137.0,61126.0,0.0638]
[1724419303025,0.0768,61129.0,61126.0,0.0638]
[1724419303244,0.07367506,61127.0,61126.0,0.0638]
[1724419303476,0.23726806,61127.0,61126.0,0.0638]
[1724419303668,0.09933104,61127.0,61126.0,0.0638]
[1724419304374,0.07475787,61127.0,61126.0,0.0638]
[1724419304917,0.07675787,61127.0,61126.0,0.0638]
[1724419305302,0.02765598,61127.0,61126.0,0.0638]
[1724419305522,0.02565598,61127.0,61126.0,0.0638]
[1724419305997,0.02965598,61127.0,61124.0,0.0635]
[1724419307138,0.02565598,61127.0,61124.0,0.0635]
[1724419307554,0.03065598,61127.0,61124.0,0.0635]
[1724419307936,0.02565598,61127.0,61124.0,0.0635]
[1724419308230,0.18924898,61127.0,61124.0,0.0635]
[1724419308463,0.19424898,61127.0,61124.0,0.0635]
[1724419311439,0.163597,61126.0,61124.0,0.0635]
[1724419311854,0.163597,61126.0,61118.0,0.0627]
[1724419311855,0.0768,61122.0,61118.0,0.0627]
[1724419312073,0.163631,61113.0,61112.0,0.0627]
[1724419312279,0.163633,61112.0,61108.0,0.0748102]
[1724419312480,0.99720387,61112.0,61108.0,0.0121102]
[1724419312991,1.04627822,61112.0,61108.0,0.0121102]
[1724419313186,0.99720387,61112.0,61108.0,0.0121102]
[1724419313530,0.60573687,61112.0,61108.0,0.0121102]
[1724419314267,1.55096688,61112.0,61108.0,0.0121102]
[1724419314474,1.50197385,61112.0,61108.0,0.0121102]
[1724419314673,1.55096688,61112.0,61108.0,0.0121102]
[1724419314845,1.50197385,61112.0,61108.0,0.0121102]
[1724419315289,1.51597385,61112.0,61108.0,0.0121102]
[1724419315891,1.40113698,61112.0,61108.0,0.0121102]
[1724419316094,1.51597385,61112.0,61108.0,0.0121102]
[1724419317361,0.163655,61105.0,61102.0,0.01445853]
[1724419317877,0.163654,61105.0,61102.0,0.01445853]
[1724419318254,0.163648,61107.0,61103.0,0.163657]
[1724419318458,0.490928,61109.0,61102.0,0.01445853]
[1724419318643,0.163645,61108.0,61104.0,0.163654]
[1724419318848,0.008,61105.0,61104.0,0.163654]
[1724419319201,0.008,61105.0,61104.0,0.490964]
[1724419319399,0.008,61105.0,61104.0,0.900874]
[1724419320216,0.241334,61112.0,61106.0,0.327297]
[1724419320543,0.011,61107.0,61106.0,0.490947]
[1724419320963,0.163636,61111.0,61107.0,0.163645]
[1724419321331,0.07932103,61112.0,61104.0,0.40991]
[1724419321332,0.16526003,61110.0,61104.0,0.40991]
[1724419321567,0.014,61105.0,61104.0,0.574564]
[1724419321794,0.16525903,61111.0,61106.0,0.163648]
[1724419322004,0.011,61107.0,61106.0,0.164648]
[1724419322199,0.011,61107.0,61106.0,0.001]
[1724419322356,0.174647,61107.0,61106.0,0.001]
[1724419323992,0.163647,61107.0,61103.0,0.163656]
[1724419324515,0.11483687,61105.0,61097.0,0.409944]
[1724419324718,0.163658,61103.0,61099.0,0.163667]
[1724419325983,0.27848987,61105.0,61101.0,0.163662]
[1724419326182,0.27848987,61105.0,61099.0,0.163667]
[1724419326183,0.4437639,61105.0,61099.0,0.163667]
[1724419326358,0.163656,61104.0,61100.0,0.163765]
[1724419326693,0.16527703,61104.0,61100.0,0.163765]
[1724419327234,0.01,61103.0,61100.0,0.163765]
[1724419327435,0.490989,61101.0,61100.0,0.0001]
[1724419327635,0.163663,61101.0,61100.0,0.0001]
[1724419328003,0.81993603,61101.0,61100.0,0.0001]
[1724419328153,0.98393901,61101.0,61100.0,0.0001]
[1724419328561,1.13183901,61101.0,61100.0,0.0001]
[1724419328958,1.55502148,61101.0,61100.0,0.0001]
[1724419329196,1.66302148,61101.0,61100.0,0.0001]
[1724419329959,1.56716501,61101.0,61100.0,0.0001]
[1724419330341,1.17221798,61101.0,61100.0,0.0001]
[1724419330543,0.602989,61101.0,61100.0,0.0001]
[1724419331317,0.112,61101.0,61100.0,0.163766]
[1724419331959,0.012,61101.0,61100.0,0.491098]
[1724419332157,0.012,61101.0,61100.0,0.239566]
[1724419332331,0.012,61101.0,61100.0,0.566898]
[1724419332540,0.012,61101.0,61100.0,0.239566]
[1724419332718,0.012,61101.0,61100.0,0.566898]
[1724419332919,0.012,61101.0,61100.0,0.95493]
[1724419333964,0.012,61101.0,61100.0,0.87913]
[1724419334746,0.008,61101.0,61100.0,0.87913]
[1724419334948,0.0777,61106.0,61103.0,0.327314]
[1724419335133,0.0777,61106.0,61104.0,0.163655]
[1724419335327,0.0777,61106.0,61105.0,0.163652]
[1724419335939,0.0777,61106.0,61100.0,0.388132]
[1724419335940,0.898215,61101.0,61100.0,0.0001]
[1724419336091,1.17705485,61101.0,61100.0,0.0001]
[1724419336617,1.16221798,61101.0,61100.0,0.0001]
[1724419337834,1.17621798,61101.0,61100.0,0.0001]
[1724419338235,1.19021798,61101.0,61100.0,0.0001]
[1724419338807,0.028,61101.0,61100.0,0.1434]
[1724419339254,0.191663,61101.0,61100.0,0.0648]
[1724419339455,0.191663,61101.0,61100.0,0.0001]
[1724419339656,0.518989,61101.0,61100.0,0.0001]
[1724419339811,0.274163,61101.0,61100.0,0.0001]
[1724419340014,0.601489,61101.0,61100.0,0.0001]
[1724419340218,0.587489,61101.0,61100.0,0.0001]
[1724419340585,0.573489,61101.0,61100.0,0.0001]
[1724419340797,0.587489,61101.0,61100.0,0.0001]
[1724419340980,0.601489,61101.0,61100.0,0.0001]
[1724419341391,0.573489,61101.0,61100.0,0.0001]
[1724419341563,0.601489,61101.0,61100.0,0.0001]
[1724419341994,0.191663,61101.0,61100.0,0.0001]
[1724419342194,0.518989,61101.0,61100.0,0.0001]
[1724419343824,0.191663,61101.0,61100.0,0.0001]
[1724419344248,0.028,61101.0,61100.0,0.0001]
[1724419344481,0.028,61101.0,61100.0,0.304866]
[1724419344720,0.028,61101.0,61100.0,0.632198]
[1724419344938,0.028,61101.0,61100.0,0.95953]
[1724419345968,0.028,61101.0,61100.0,0.632198]
[1724419346380,0.014,61101.0,61100.0,0.632198]
[1724419346797,0.025,61101.0,61100.0,0.632198]
[1724419347613,0.011,61101.0,61100.0,0.632198]
[1724419348015,0.025,61101.0,61100.0,0.632198]
[1724419352568,0.025,61101.0,61100.0,0.553298]
[1724419356961,0.025,61101.0,61100.0,0.88063]
[1724419357162,0.025,61101.0,61100.0,0.95903]
[1724419358489,0.025,61101.0,61100.0,1.286362]
[1724419358687,0.025,61101.0,61100.0,1.77769698]
[1724419358835,0.014,61101.0,61100.0,1.45036498]
[1724419359036,0.4675,61115.0,61100.0,1.45036498]
[1724419359037,0.4675,61115.0,61109.0,0.0636]
[1724419359277,0.0826,61114.0,61109.0,0.0636]
[1724419359496,0.0826,61114.0,61111.0,0.327273]
[1724419359706,0.0826,61114.0,61110.0,0.163638]
[1724419359707,0.31275103,61114.0,61110.0,0.163638]
[1724419359915,0.14912103,61114.0,61111.0,0.163636]
[1724419360122,0.14912103,61114.0,61109.0,0.327281]
[1724419360123,0.31275003,61114.0,61110.0,0.163639]
[1724419360539,0.32675003,61114.0,61110.0,0.163639]
[1724419360749,0.33775003,61114.0,61110.0,0.163639]
[1724419360947,0.32375003,61114.0,61110.0,0.163639]
[1724419361176,0.257229,61114.0,61110.0,0.163639]
[1724419361993,0.257229,61114.0,61111.0,0.163636]
[1724419362570,0.271229,61114.0,61111.0,0.163636]
[1724419362852,0.246229,61114.0,61111.0,0.163636]
[1724419363135,0.271229,61114.0,61109.0,0.327281]
[1724419363277,0.271229,61114.0,61109.0,0.163641]
[1724419363278,0.163631,61113.0,61109.0,0.163641]
[1724419363481,0.163631,61113.0,61108.0,0.163644]
[1724419363720,0.163631,61113.0,61109.0,0.17355559]
[1724419363927,0.26184903,61114.0,61110.0,0.163638]
[1724419364130,0.24784903,61114.0,61110.0,0.17355212]
[1724419364297,0.26184903,61114.0,61110.0,0.17355212]
[1724419364520,0.163631,61113.0,61110.0,0.17355212]
[1724419364742,0.09822103,61114.0,61110.0,0.17355212]
[1724419364958,0.260228,61114.0,61110.0,0.17355212]
[1724419365551,0.271228,61114.0,61110.0,0.17355212]
[1724419365977,0.0826,61114.0,61110.0,0.33719212]
[1724419366131,0.257228,61114.0,61110.0,0.17355212]
[1724419366329,0.0936,61114.0,61110.0,0.17355212]
[1724419366533,0.011,61114.0,61111.0,0.163636]
[1724419366965,0.177631,61113.0,61111.0,0.00991166]
[1724419367164,0.011,61114.0,61111.0,0.00991166]
[1724419367369,0.174629,61114.0,61110.0,0.163638]
[1724419367550,0.188629,61114.0,61112.0,0.00990919]
[1724419367745,0.188629,61114.0,61110.0,0.163638]
[1724419367898,0.174629,61114.0,61113.0,0.00990672]
[1724419368083,0.174629,61114.0,61110.0,0.163638]
[1724419368285,0.014,61113.0,61111.0,0.00991166]
[1724419368551,0.163629,61114.0,61111.0,0.00991166]
[1724419368778,0.174629,61114.0,61111.0,0.17354766]
[1724419369149,0.163629,61114.0,61111.0,0.17354766]
[1724419369497,0.01,61113.0,61111.0,0.17354766]
[1724419369902,0.163629,61114.0,61111.0,0.17354766]
[1724419370277,0.327248,61116.0,61111.0,0.17354766]
[1724419370528,0.011,61114.0,61111.0,0.17354766]
[1724419370984,0.025,61114.0,61111.0,0.17354766]
[1724419371217,0.17463,61114.0,61111.0,0.00991166]
[1724419371408,0.163631,61113.0,61111.0,0.00991166]
[1724419371772,0.163631,61113.0,61110.0,0.163639]
[1724419371983,0.0817,61112.0,61108.0,0.327286]
[1724419372582,0.0817,61112.0,61109.0,0.163641]
[1724419372748,0.245334,61112.0,61107.0,0.327294]
[1724419372949,0.0817,61112.0,61109.0,0.163639]
[1724419373241,0.0817,61112.0,61110.0,0.163639]
[1724419373641,0.0907,61112.0,61110.0,0.163639]
[1724419373767,0.0907,61112.0,61108.0,0.327287]
[1724419373974,0.0907,61112.0,61109.0,0.16364]
[1724419374178,0.254334,61112.0,61109.0,0.16364]
[1724419374841,0.0907,61112.0,61108.0,0.163643]
[1724419375007,0.267334,61112.0,61108.0,0.163643]
[1724419375376,0.245334,61112.0,61109.0,0.163641]
[1724419375526,0.245334,61112.0,61109.0,0.17353783]
[1724419375732,0.022,61112.0,61110.0,0.163638]
[1724419375928,0.022,61112.0,61111.0,0.163636]
[1724419376135,0.163629,61114.0,61111.0,0.2355279]
[1724419376543,0.009,61112.0,61111.0,0.2355279]
[1724419376698,0.009,61112.0,61111.0,0.5628009]
[1724419376905,0.009,61112.0,61111.0,0.9668739]
[1724419377285,0.04900468,61122.0,61116.0,0.163622]
[1724419377286,0.163612,61120.0,61116.0,0.163622]
[1724419377648,0.490852,61118.0,61117.0,0.00987709]
[1724419378191,0.163623,61117.0,61113.0,0.163631]
[1724419378384,0.163623,61116.0,61113.0,0.163631]
[1724419379170,0.0785,61115.0,61113.0,0.163631]
[1724419380600,0.176623,61116.0,61113.0,0.163631]
[1724419381318,0.027,61116.0,61113.0,0.163631]
[1724419381676,0.014,61116.0,61113.0,0.163631]
[1724419382110,0.012,61115.0,61113.0,0.163631]
[1724419382499,0.014,61116.0,61113.0,0.163631]
[1724419382926,0.014,61116.0,61111.0,0.062]
[1724419382927,0.014,61116.0,61112.0,0.327264]
[1724419383124,0.014,61116.0,61115.0,0.163625]
[1724419383326,0.014,61116.0,61115.0,0.490876]
[1724419383526,0.027,61116.0,61115.0,0.490876]
[1724419383890,0.013,61116.0,61115.0,0.490876]
[1724419384626,0.013,61116.0,61115.0,0.50510469]
[1724419385271,0.163613,61120.0,61115.0,0.50510469]
[1724419385445,0.0829,61121.0,61116.0,0.163622]
[1724419385647,0.163615,61119.0,61116.0,0.17784699]
[1724419386048,0.29552805,61121.0,61116.0,0.17784699]
[1724419386250,0.163613,61120.0,61116.0,0.17784699]
[1724419386650,0.14591605,61121.0,61116.0,0.01422499]
[1724419386853,0.260511,61121.0,61117.0,0.16362]
[1724419387053,0.246511,61121.0,61117.0,0.17784129]
[1724419387256,0.163613,61120.0,61117.0,0.17784129]
[1724419388361,0.163613,61120.0,61117.0,0.01422129]
[1724419388916,0.163613,61120.0,61116.0,0.163622]
[1724419389301,0.163613,61120.0,61117.0,0.001]
[1724419389568,0.163613,61120.0,61116.0,0.163622]
[1724419389762,0.177613,61120.0,61116.0,0.163622]
[1724419390012,0.191613,61120.0,61117.0,0.001]
[1724419390411,0.163616,61119.0,61117.0,0.001]
[1724419390852,0.163616,61119.0,61118.0,0.01421759]
[1724419391316,0.163616,61119.0,61117.0,0.001]
[1724419392670,0.163616,61119.0,61118.0,0.01421759]
[1724419393127,0.191616,61119.0,61116.0,0.163622]
[1724419393571,0.177616,61119.0,61116.0,0.163622]
[1724419394257,0.163618,61118.0,61115.0,0.163625]
[1724419394488,0.014,61119.0,61116.0,0.163623]
[1724419394728,0.028,61119.0,61116.0,0.163623]
[1724419395210,0.028,61119.0,61114.0,0.327254]
[1724419395211,0.028,61119.0,61113.0,0.327259]
[1724419395452,0.177615,61119.0,61115.0,0.163623]
[1724419395686,0.191615,61119.0,61115.0,0.163623]
[1724419396173,0.177615,61119.0,61115.0,0.163623]
[1724419396435,0.191615,61119.0,61115.0,0.163623]
[1724419396669,0.177615,61119.0,61115.0,0.163623]
[1724419396899,0.014,61118.0,61115.0,0.163623]
[1724419398114,0.014,61118.0,61114.0,0.404355]
[1724419398356,0.014,61118.0,61116.0,0.163623]
[1724419398814,0.028,61118.0,61116.0,0.163623]
[1724419399220,0.028,61118.0,61117.0,0.22412]
[1724419399446,0.014,61118.0,61117.0,0.22412]
[1724419399647,0.04901605,61120.0,61118.0,0.163617]
[1724419400255,0.04901605,61120.0,61117.0,0.22412]
[1724419400754,0.04901605,61120.0,61114.0,0.464755]
[1724419400755,0.028,61118.0,61114.0,0.464755]
[1724419401027,0.028,61118.0,61114.0,0.387655]
[1724419401334,0.014,61118.0,61117.0,0.16362]
[1724419401917,0.0802,61118.0,61117.0,0.16362]
[1724419402899,0.0942,61118.0,61117.0,0.16362]
[1724419403330,0.15729998,61118.0,61117.0,0.16362]
[1724419403468,0.14329998,61118.0,61117.0,0.16362]
[1724419403665,0.14329998,61118.0,61116.0,0.163622]
[1724419403909,0.15729998,61118.0,61116.0,0.163622]
[1724419404943,0.06309998,61118.0,61116.0,0.163622]
[1724419405175,0.04909998,61118.0,61115.0,0.163625]
[1724419405651,0.06309998,61118.0,61115.0,0.163625]
[1724419406341,0.07709998,61118.0,61115.0,0.163625]
[1724419406543,0.04909998,61118.0,61115.0,0.163625]
[1724419406856,0.07709998,61118.0,61115.0,0.163625]
[1724419407971,0.07709998,61118.0,61117.0,0.16362]
[1724419408367,0.07709998,61118.0,61117.0,0.961702]
[1724419408581,0.028,61118.0,61117.0,1.78018698]
[1724419408787,0.014,61118.0,61117.0,1.78118698]
[1724419408989,0.014,61118.0,61117.0,1.88018698]
[1724419409196,0.028,61118.0,61117.0,1.88018698]
[1724419409613,0.014,61118.0,61117.0,1.88018698]
[1724419409834,0.014,61118.0,61117.0,1.88318698]
[1724419410036,0.49229154,61132.0,61128.0,0.0632]
[1724419410286,0.49229154,61132.0,61129.0,0.163587]
[1724419410511,0.246578,61133.0,61129.0,0.163587]
[1724419410791,0.163575,61134.0,61130.0,0.163584]
[1724419410921,0.163575,61134.0,61131.0,0.163582]
[1724419411116,0.04909998,61135.0,61131.0,0.163582]
[1724419411449,0.163572,61135.0,61131.0,0.163582]
[1724419411615,0.12449998,61136.0,61132.0,0.163579]
[1724419411817,0.238971,61136.0,61132.0,0.163579]
[1724419412225,0.014,61133.0,61132.0,0.163579]
[1724419413286,0.026,61133.0,61132.0,0.164579]
[1724419413635,0.012,61133.0,61132.0,0.164579]
[1724419413787,0.012,61133.0,61132.0,0.165579]
[1724419413991,0.012,61133.0,61132.0,0.002]
[1724419414192,0.012,61133.0,61132.0,0.001]
[1724419414393,0.012,61133.0,61132.0,0.16458]
[1724419414593,0.026,61133.0,61132.0,0.002]
[1724419415623,0.026,61133.0,61132.0,0.16558]
[1724419416024,0.026,61133.0,61132.0,0.002]
[1724419416232,0.026,61133.0,61132.0,0.01481958]
[1724419416386,0.026,61133.0,61132.0,0.002]
[1724419416599,0.026,61133.0,61132.0,0.17839958]
[1724419416799,0.026,61133.0,61132.0,0.16558]
[1724419417023,0.026,61133.0,61132.0,0.17839958]
[1724419419967,0.026,61133.0,61132.0,0.50555958]
[1724419420345,0.026,61133.0,61132.0,0.83271958]
[1724419420981,0.026,61133.0,61132.0,0.01481958]
[1724419421197,0.85986921,61133.0,61132.0,0.01481958]
[1724419421403,1.47886601,61133.0,61132.0,0.01481958]
[1724419421602,0.0823,61117.0,61111.0,0.327272]
[1724419421831,0.11492321,61112.0,61108.0,0.066]
[1724419422030,0.11492321,61112.0,61110.0,0.163636]
[1724419422248,0.11492321,61112.0,61104.0,0.0607]
[1724419422445,0.0665,61118.0,61101.0,0.327324]
[1724419422446,0.11492321,61104.0,61101.0,0.327324]
[1724419422662,0.11492321,61104.0,61100.0,0.0001]
[1724419422868,0.11492321,61107.0,61101.0,0.327325]
[1724419423079,0.11492321,61107.0,61103.0,0.163657]
[1724419423455,0.27857021,61107.0,61102.0,0.163658]
[1724419423680,0.008,61104.0,61100.0,0.163764]
[1724419423886,0.008,61104.0,61103.0,0.01700801]
[1724419424292,0.28019224,61107.0,61103.0,0.01700801]
[1724419424675,0.17626903,61107.0,61103.0,0.01700801]
[1724419425115,0.012,61104.0,61103.0,0.01700801]
[1724419425333,0.163651,61106.0,61103.0,0.01700801]
[1724419425765,0.011,61107.0,61103.0,0.18066501]
[1724419425971,0.163648,61107.0,61103.0,0.18066501]
[1724419426384,0.163648,61107.0,61103.0,0.01700801]
[1724419426808,0.008,61104.0,61103.0,0.01700801]
[1724419427240,0.16365,61106.0,61103.0,0.01700801]
[1724419427419,0.16365,61106.0,61103.0,0.03401602]
[1724419427642,0.026,61107.0,61103.0,0.18066501]
[1724419427845,0.175648,61107.0,61104.0,0.01700208]
[1724419427961,0.16365,61106.0,61104.0,0.01700208]
[1724419428161,0.163652,61105.0,61104.0,0.01700208]
[1724419428809,0.163652,61105.0,61103.0,0.01700801]
[1724419428983,0.026,61107.0,61103.0,0.01700801]
[1724419428984,0.163655,61104.0,61103.0,0.01700801]
[1724419429189,0.163655,61104.0,61103.0,0.03401602]
[1724419430008,0.163652,61106.0,61103.0,0.03401602]
[1724419430209,0.008,61104.0,61103.0,0.19767402]
[1724419430871,0.008,61104.0,61100.0,0.0001]
[1724419430872,0.163663,61101.0,61100.0,0.0001]
[1724419431074,1.38986501,61101.0,61100.0,0.0001]
[1724419431235,1.81719101,61101.0,61100.0,0.0001]
[1724419431402,1.53880739,61101.0,61100.0,0.0001]
[1724419431608,0.342263,61101.0,61100.0,0.0001]
[1724419432037,0.1786,61101.0,61100.0,0.0001]
[1724419432240,0.014,61101.0,61100.0,0.0001]
[1724419432727,0.014,61101.0,61100.0,0.163766]
[1724419432932,0.014,61101.0,61100.0,0.571798]
[1724419433133,0.028,61101.0,61100.0,1.292762]
[1724419433604,0.65592054,61114.0,61100.0,1.292762]
[1724419433605,0.163631,61113.0,61108.0,0.163642]
[1724419433833,0.163631,61113.0,61109.0,0.163641]
[1724419433953,0.163631,61113.0,61107.0,0.490938]
[1724419434471,0.0832,61119.0,61112.0,0.163633]
[1724419434674,0.1493,61124.0,61111.0,0.0807]
[1724419434878,0.163611,61121.0,61116.0,0.0663]
[1724419435073,0.163613,61120.0,61116.0,0.229923]
[1724419435659,0.163613,61120.0,61116.0,0.0663]
[1724419436064,0.163607,61122.0,61116.0,0.0663]
[1724419436267,0.163607,61122.0,61117.0,0.163619]
[1724419436764,0.16361,61121.0,61117.0,0.163619]
[1724419436968,0.014,61120.0,61117.0,0.163619]
[1724419438123,0.177613,61120.0,61116.0,0.0663]
[1724419438343,0.177613,61120.0,61116.0,0.229922]